bitfinex/quotes_ETHUSD_20240603
["timestamp","ask_amount","ask_price","bid_price","bid_amount"]
[1717403208141,3.89140423,3825.9,3825.8,0.08194851]
[1717403208350,4.61690865,3825.9,3825.5,7.8421]
[1717403208553,4.61690865,3825.9,3825.8,0.08194851]
[1717403208752,4.61690865,3825.9,3825.5,7.8421]
[1717403208952,1.63610423,3825.9,3825.8,0.08194851]
[1717403209151,0.75,3826.0,3825.5,7.8421]
[1717403209340,0.75,3826.0,3825.8,0.08194851]
[1717403209522,0.75,3826.0,3825.5,10.3418]
[1717403209727,0.75,3826.0,3825.9,0.08190669]
[1717403209967,0.75,3826.0,3825.5,10.3418]
[1717403210165,0.75,3826.0,3825.9,0.08190669]
[1717403210350,0.75,3826.0,3825.5,10.3418]
[1717403210555,0.75,3826.0,3825.9,0.08190669]
[1717403210758,0.75,3826.0,3825.5,10.3418]
[1717403210946,1.36408776,3825.9,3825.6,2.61396]
[1717403211271,1.36408776,3825.9,3825.6,3.909536]
[1717403211437,1.36408776,3826.0,3825.6,3.909536]
[1717403211639,1.36408776,3826.1,3825.6,3.909536]
[1717403211953,2.11408776,3826.1,3825.6,3.909536]
[1717403212770,2.11408776,3826.1,3825.9,2.61374]
[1717403212976,1.36408776,3826.1,3825.9,2.61374]
[1717403213283,1.36408776,3826.1,3825.9,3.0046716]
[1717403213436,1.36408776,3826.1,3825.9,2.61374]
[1717403214271,1.36408776,3826.0,3825.9,2.61374]
[1717403215555,1.36408776,3826.0,3825.5,12.95577]
[1717403216792,1.36408776,3826.0,3825.8,2.61381]
[1717403217579,1.36408776,3826.1,3825.8,2.61381]
[1717403217787,1.36408776,3826.1,3825.9,0.261381]
[1717403218746,1.36408776,3826.1,3826.0,2.61369]
[1717403220086,1.63610423,3826.4,3826.0,2.61369]
[1717403220087,0.75,3826.3,3826.0,2.61369]
[1717403220884,0.75,3826.3,3825.6,2.6139]
[1717403221186,1.36527617,3825.9,3825.6,2.6139]
[1717403221388,1.36527617,3825.9,3825.7,7.8417]
[1717403222149,1.36527617,3825.8,3825.7,7.8417]
[1717403222704,2.11527617,3825.8,3825.7,7.8417]
[1717403222846,0.75,3825.8,3825.7,7.8417]
[1717403223495,0.75,3825.8,3825.7,10.2949]
[1717403223702,2.11593667,3825.8,3825.7,11.585792]
[1717403223856,1.36593667,3825.8,3825.7,11.585792]
[1717403224059,1.36593667,3825.8,3825.7,9.132592]
[1717403224257,1.63610423,3826.1,3825.7,9.132592]
[1717403224494,0.75,3825.9,3825.7,7.8417]
[1717403224701,1.36621227,3825.8,3825.7,7.8417]
[1717403225997,2.4631,3826.6,3825.7,7.8417]
[1717403226202,0.75,3825.9,3825.7,7.8417]
[1717403226383,1.36674387,3825.8,3825.7,7.8417]
[1717403227473,1.36674387,3825.8,3825.7,9.126602]
[1717403228174,1.64009264,3826.1,3825.7,9.126602]
[1717403228363,0.75,3826.0,3825.8,2.61381]
[1717403228896,1.64009264,3826.1,3825.8,2.61381]
[1717403229195,2.39047058,3826.1,3825.8,2.61381]
[1717403229398,1.64047058,3826.0,3825.8,2.61381]
[1717403229774,1.64047058,3825.9,3825.8,2.61381]
[1717403230369,2.3241,3826.1,3825.8,2.61381]
[1717403230596,0.72717209,3826.0,3825.8,2.61381]
[1717403233407,2.64105443,3826.0,3825.8,2.61381]
[1717403233713,0.72717209,3826.0,3825.8,2.61381]
[1717403233868,1.29221749,3826.0,3825.8,2.61381]
[1717403234214,3.20609983,3826.0,3825.8,2.61381]
[1717403234396,2.64105443,3826.0,3825.8,2.61381]
[1717403235367,2.64105443,3826.0,3825.8,3.659361]
[1717403235573,1.91388234,3826.0,3825.8,3.659361]
[1717403235876,1.91388234,3826.1,3825.8,3.659361]
[1717403236083,2.66388234,3826.1,3825.8,3.659361]
[1717403236376,1.91388234,3826.0,3825.8,3.659361]
[1717403236810,2.66388234,3826.1,3826.0,2.61369]
[1717403237004,1.91388234,3826.1,3826.0,2.61369]
[1717403237374,1.91388234,3826.2,3826.0,2.61369]
[1717403239191,1.91388234,3826.1,3826.0,2.61369]
[1717403239534,1.91388234,3826.2,3826.0,2.61369]
[1717403239673,0.75,3826.2,3826.0,2.6951828]
[1717403239875,1.91909657,3826.1,3826.0,2.6951828]
[1717403240718,2.66909657,3826.1,3826.0,2.6951828]
[1717403241070,0.75,3826.1,3826.0,2.6951828]
[1717403241306,2.66944539,3826.1,3826.0,2.6951828]
[1717403242006,1.91944539,3826.1,3826.0,2.6951828]
[1717403243516,2.26734487,3826.4,3826.0,0.0814928]
[1717403243679,0.75,3826.1,3826.0,0.0814928]
[1717403244009,0.75,3826.1,3825.7,7.8417]
[1717403244010,1.31499824,3826.1,3825.7,7.8417]
[1717403244212,0.75,3826.1,3826.0,0.08137936]
[1717403244375,1.31504541,3826.1,3825.7,7.8417]
[1717403244575,0.75,3826.1,3826.0,0.08137936]
[1717403244779,0.75,3826.1,3826.0,1.05368394]
[1717403244999,2.26734487,3826.3,3826.0,1.1350633]
[1717403245313,1.91943604,3826.1,3826.0,3.7486933]
[1717403245693,1.91943604,3826.2,3826.0,3.7486933]
[1717403245893,1.91943604,3826.3,3826.2,4.98515]
[1717403246201,1.91943604,3826.4,3826.2,5.06644574]
[1717403247210,2.54039987,3826.8,3826.2,5.06644574]
[1717403247211,1.91943604,3826.6,3826.2,5.06644574]
[1717403247409,1.64439439,3826.3,3826.2,5.06644574]
[1717403247611,1.64439439,3826.4,3826.2,5.06644574]
[1717403247815,1.64439439,3826.4,3826.3,0.6494999]
[1717403248012,0.273055,3826.8,3826.4,2.61338]
[1717403248313,2.19140509,3826.8,3826.6,2.61328]
[1717403248723,2.19140509,3826.8,3826.7,0.08076657]
[1717403249316,0.273055,3826.8,3826.7,0.08076657]
[1717403250087,0.273055,3826.8,3826.7,0.35017123]
[1717403250309,1.023055,3826.8,3826.7,0.35017123]
[1717403250498,1.023055,3826.8,3826.7,0.08076657]
[1717403250701,2.94140509,3826.8,3826.7,0.08076657]
[1717403251083,1.023055,3826.8,3826.7,0.08076657]
[1717403251806,2.94140509,3826.8,3826.7,0.08076657]
[1717403252199,2.94140509,3826.8,3826.6,2.61328]
[1717403252526,2.94140509,3826.8,3826.7,0.08066577]
[1717403252825,1.023055,3826.8,3826.7,0.08066577]
[1717403252993,1.023055,3826.8,3826.2,2.6135]
[1717403253197,1.91709522,3826.7,3826.3,0.29883693]
[1717403253399,1.91709522,3826.7,3826.3,0.08083297]
[1717403253610,1.91709522,3826.6,3826.3,0.08083297]
[1717403253778,1.91709522,3826.6,3826.4,2.61342]
[1717403253982,1.91709522,3826.6,3826.4,2.69421117]
[1717403254688,0.75,3826.6,3826.4,2.69421117]
[1717403255224,2.66709522,3826.6,3826.4,2.69421117]
[1717403256325,2.66709522,3826.6,3826.4,0.08079117]
[1717403256703,1.91709522,3826.5,3826.1,3.0]
[1717403256900,1.64362034,3826.2,3826.1,3.0]
[1717403257085,1.64362034,3826.2,3826.1,0.561364]
[1717403257285,1.91709522,3826.5,3826.0,2.61364]
[1717403257514,1.64367848,3826.1,3826.0,2.61364]
[1717403258283,1.64367848,3826.1,3826.0,8.01184]
[1717403258686,1.64367848,3826.3,3826.0,8.01184]
[1717403258890,1.64367848,3826.3,3826.2,2.61355]
[1717403260692,1.91709522,3826.6,3826.2,2.61355]
[1717403260887,0.75,3826.5,3826.2,2.61355]
[1717403261633,3.1839,3826.5,3826.2,2.61355]
[1717403261838,3.1839,3826.5,3825.8,2.61376]
[1717403262024,1.64352847,3826.1,3825.9,10.8413]
[1717403262628,1.64352847,3826.1,3826.0,2.61369]
[1717403264634,1.64352847,3826.2,3826.0,2.61369]
[1717403265146,1.64352847,3826.1,3826.0,2.61369]
[1717403265635,3.48683367,3826.4,3826.0,2.61369]
[1717403265840,0.75,3826.2,3826.0,2.61369]
[1717403268130,0.75,3826.2,3826.1,2.3278]
[1717403268324,1.91744565,3826.3,3826.1,3.606079]
[1717403268533,2.66744565,3826.3,3826.1,3.606079]
[1717403268716,0.75,3826.3,3826.1,3.606079]
[1717403268926,0.75,3826.3,3826.2,2.61355]
[1717403269129,0.273055,3826.8,3826.2,2.61355]
[1717403269331,0.75,3826.4,3826.2,2.61355]
[1717403269520,0.75,3826.4,3826.3,0.08089847]
[1717403269906,1.9176221,3826.6,3826.2,4.0196429]
[1717403270120,2.6676221,3826.6,3826.4,2.61342]
[1717403270601,2.6678549,3826.6,3826.5,0.08081486]
[1717403270840,3.23280435,3826.6,3826.5,0.08081486]
[1717403271553,2.6678549,3826.6,3826.5,0.08081486]
[1717403273369,1.31495274,3826.6,3826.3,0.140519]
[1717403273668,0.75,3826.6,3826.5,0.08080226]
[1717403273973,1.31499185,3826.6,3826.5,0.08080226]
[1717403274121,1.31499185,3826.6,3826.3,0.140519]
[1717403274314,0.56499185,3826.5,3826.4,0.08084407]
[1717403274943,2.95369185,3826.5,3826.4,0.08084407]
[1717403275960,0.56499185,3826.5,3826.4,0.08084407]
[1717403276843,1.91841173,3826.5,3826.4,0.08084407]
[1717403277663,1.91851222,3826.5,3826.4,0.08084407]
[1717403278999,1.91870442,3826.5,3826.4,0.59633738]
[1717403279151,1.91870442,3826.6,3826.4,0.59633738]
[1717403279350,2.66870442,3826.6,3826.4,0.59633738]
[1717403279783,1.91870442,3826.5,3826.4,0.59633738]
[1717403280683,2.66870442,3826.5,3826.4,0.59633738]
[1717403280851,0.75,3826.5,3826.4,0.08084407]
[1717403281059,0.75,3826.5,3826.3,2.753989]
[1717403281270,1.91913722,3826.4,3826.3,2.753989]
[1717403281470,1.91913722,3826.4,3826.3,2.83487487]
[1717403281682,1.91913722,3826.5,3826.3,2.83487487]
[1717403281995,1.91913722,3826.5,3826.4,2.68798749]
[1717403282292,3.48834733,3826.6,3826.5,2.61335]
[1717403282588,0.56491158,3826.6,3826.5,2.69415226]
[1717403282793,0.56491158,3826.6,3826.5,3.24641814]
[1717403283891,1.56921011,3826.7,3826.5,3.24641814]
[1717403284094,2.1341011,3826.7,3826.5,3.24641814]
[1717403284747,4.05323832,3826.7,3826.5,3.24641814]
[1717403284964,3.48834733,3826.7,3826.5,3.24641814]
[1717403285165,3.48834733,3826.7,3826.6,0.60749246]
[1717403285450,4.0532539,3826.7,3826.6,0.68808031]
[1717403285650,0.56490657,3826.7,3826.6,0.68808031]
[1717403286618,1.91913722,3826.7,3826.6,0.68808031]
[1717403286776,2.13411028,3826.7,3826.6,0.08058785]
[1717403287223,1.56921011,3826.7,3826.6,0.08058785]
[1717403287576,0.83795517,3826.8,3826.6,0.08058785]
[1717403287978,1.58795517,3826.8,3826.6,0.08058785]
[1717403288280,0.56490017,3826.7,3826.6,0.08058785]
[1717403288596,2.13412773,3826.7,3826.6,0.08058785]
[1717403288794,1.56922756,3826.7,3826.6,0.39238228]
[1717403289582,0.83795517,3826.8,3826.6,0.39238228]
[1717403289790,1.58795517,3826.8,3826.6,0.39238228]
[1717403289999,0.56490017,3826.7,3826.6,0.39238228]
[1717403290226,1.56928289,3826.7,3826.6,0.39238228]
[1717403290750,1.91952348,3826.7,3826.6,0.39238228]
[1717403290940,2.48442365,3826.7,3826.6,0.39238228]
[1717403291085,2.48431531,3826.7,3826.6,0.39238228]
[1717403291434,1.91941514,3826.7,3826.6,0.39238228]
[1717403291986,1.91952505,3826.7,3826.6,0.39238228]
[1717403292185,1.91952505,3826.7,3826.6,2.83738228]
[1717403292382,1.84224629,3826.8,3826.7,2.61321]
[1717403292638,1.84224629,3826.8,3826.7,3.18661798]
[1717403292800,0.83797013,3826.8,3826.7,3.26464663]
[1717403293002,0.273055,3826.8,3826.7,3.26464663]
[1717403293215,2.19245538,3826.8,3826.7,3.26464663]
[1717403293384,0.273055,3826.8,3826.7,3.26464663]
[1717403296238,2.19245538,3826.8,3826.7,3.26464663]
[1717403297039,0.273055,3826.8,3826.7,3.26464663]
[1717403297331,2.19245538,3826.8,3826.7,3.26464663]
[1717403297734,0.273055,3826.8,3826.7,3.26464663]
[1717403297938,0.273055,3826.8,3826.7,11.10434663]
[1717403301126,1.91720032,3826.8,3826.7,11.10434663]
[1717403301533,0.273055,3826.8,3826.7,14.10434663]
[1717403302302,1.64414532,3827.0,3826.7,14.10434663]
[1717403302599,1.64414532,3827.1,3826.9,2.61308]
[1717403302802,1.64414532,3827.1,3827.0,3.0]
[1717403303117,1.64414532,3827.1,3827.0,3.07779238]
[1717403303519,3.48859167,3827.5,3827.1,2.61294]
[1717403303520,1.64414532,3827.2,3827.1,2.61294]
[1717403303842,1.64414532,3827.3,3827.1,2.69069059]
[1717403304161,1.64414532,3827.3,3827.2,0.56906906]
[1717403304303,1.56919129,3827.5,3827.2,0.56906906]
[1717403304504,2.88399262,3827.5,3827.3,0.07766702]
[1717403304734,0.56480133,3827.4,3827.2,0.56906906]
[1717403304961,0.56480133,3827.4,3827.3,0.07766702]
[1717403305162,2.13399262,3827.5,3827.3,0.70363463]
[1717403305365,2.13399262,3827.5,3827.3,0.62596761]
[1717403305668,2.13399262,3827.5,3827.4,0.07762523]
[1717403306643,0.56480133,3827.5,3827.4,0.07762523]
[1717403306826,2.13399262,3827.6,3827.4,0.07762523]
[1717403307029,2.13399262,3827.6,3827.4,2.69031523]
[1717403307228,1.56919129,3827.8,3827.6,2.6126]
[1717403307471,2.257,3828.3,3827.6,2.6126]
[1717403307655,1.56878395,3827.8,3827.6,2.6126]
[1717403307860,2.13354617,3827.8,3827.6,2.6126]
[1717403308171,2.13363143,3827.7,3827.6,2.6126]
[1717403308335,1.56884664,3827.7,3827.6,2.6126]
[1717403308538,2.13363143,3827.7,3827.6,2.6126]
[1717403308744,1.56884664,3827.8,3827.6,2.99961959]
[1717403309044,2.13360612,3827.8,3827.6,2.99961959]
[1717403309796,1.56884664,3827.9,3827.6,2.99961959]
[1717403310096,2.13359337,3827.9,3827.6,2.99961959]
[1717403311088,1.64136392,3827.7,3827.6,5.33131959]
[1717403311609,1.64136392,3827.9,3827.6,8.33131959]
[1717403311757,1.64136392,3828.0,3827.8,2.61246]
[1717403312071,1.64136392,3828.0,3827.9,3.0]
[1717403312400,1.64136392,3828.1,3827.9,3.0]
[1717403312612,1.64136392,3828.2,3828.0,2.61233]
[1717403313667,1.64136392,3828.3,3828.0,2.61233]
[1717403314457,1.64136392,3828.3,3828.1,0.07683409]
[1717403314699,1.64136392,3828.4,3828.2,2.61219]
[1717403315068,1.64136392,3828.4,3828.3,0.07675056]
[1717403315283,1.64136392,3828.5,3828.2,2.61219]
[1717403315478,2.39136392,3828.5,3828.2,2.61219]
[1717403315683,1.64136392,3828.5,3828.3,0.07666999]
[1717403316081,1.64136392,3828.5,3828.4,2.68867823]
[1717403316289,1.64136392,3828.7,3828.4,2.68867823]
[1717403316684,1.64136392,3828.6,3828.4,2.68867823]
[1717403317272,3.58123072,3828.9,3828.4,2.68867823]
[1717403317273,1.64136392,3828.7,3828.5,2.3793]
[1717403317474,0.75,3828.7,3828.6,2.68839926]
[1717403317781,1.64136392,3828.8,3828.6,5.68839926]
[1717403317983,1.64136392,3828.8,3828.6,2.68839926]
[1717403318158,1.36550884,3828.7,3828.6,2.68839926]
[1717403318358,1.36550884,3828.7,3828.6,5.68839926]
[1717403319061,0.0966522,3828.9,3828.6,5.68839926]
[1717403319292,0.75,3828.8,3828.6,3.07647926]
[1717403319498,0.75,3828.8,3828.6,0.07647926]
[1717403319866,0.75,3828.8,3828.3,3.0]
[1717403320179,1.09161699,3828.5,3828.4,2.68856263]
[1717403320389,1.09161699,3828.5,3828.4,5.68856263]
[1717403320778,1.36479677,3828.6,3828.4,2.68856263]
[1717403321015,1.36479677,3828.5,3828.4,0.07654263]
[1717403321159,0.75,3828.6,3828.4,0.07654263]
[1717403321368,2.38766114,3828.6,3828.4,0.07654263]
[1717403321673,1.63766114,3828.5,3828.0,2.61227]
[1717403321862,1.63766114,3828.5,3828.1,6.47201266]
[1717403322466,1.63778412,3828.5,3828.1,6.47201266]
[1717403323068,2.38778412,3828.6,3828.1,6.47201266]
[1717403324185,1.63778412,3828.5,3828.1,6.47201266]
[1717403326184,2.38778412,3828.6,3828.1,6.47201266]
[1717403326681,1.63778412,3828.5,3828.1,6.47201266]
[1717403329122,1.36500109,3828.2,3828.1,6.47201266]
[1717403329631,1.63778412,3828.3,3828.1,6.5460893]
[1717403331130,3.77118088,3828.3,3828.1,6.5460893]
[1717403331336,2.4017,3828.2,3828.1,6.5460893]
[1717403331497,2.96644002,3828.2,3828.1,6.5460893]
[1717403332419,4.87718816,3828.2,3828.1,6.5460893]
[1717403332831,4.87718816,3828.2,3828.1,6.47201266]
[1717403333202,4.87718816,3828.2,3828.1,6.54360235]
[1717403333398,4.87851816,3828.2,3828.1,6.54360235]
[1717403334299,3.94121096,3828.2,3828.1,6.54360235]
[1717403334703,4.49121096,3828.2,3828.1,6.54360235]
[1717403335345,3.92647094,3828.2,3828.1,6.54360235]
[1717403335554,4.49131209,3828.2,3828.1,6.54360235]
[1717403335755,6.74838333,3828.2,3828.1,6.47201266]
[1717403336037,6.77097071,3828.2,3828.1,6.54360235]
[1717403337145,6.20612081,3828.2,3828.1,6.54360235]
[1717403337340,6.7709656,3828.2,3828.1,6.54360235]
[1717403337503,4.51141573,3828.2,3828.1,6.54360235]
[1717403341361,4.51141573,3828.2,3828.1,6.47201266]
[1717403341728,4.51141573,3828.2,3828.1,6.54372541]
[1717403343259,4.51142591,3828.2,3828.1,6.54372541]
[1717403343868,0.56484942,3828.2,3828.1,6.54372541]
[1717403344860,2.82607711,3828.2,3828.1,6.54372541]
[1717403345054,2.82602919,3828.2,3828.1,6.54372541]
[1717403345244,0.56480158,3828.2,3828.1,6.54372541]
[1717403345618,1.11480158,3828.2,3828.1,6.54372541]
[1717403345819,4.49941068,3828.2,3828.1,6.47201266]
[1717403346120,4.49941068,3828.2,3828.1,6.5438133]
[1717403346963,7.21648007,3828.2,3828.1,6.5438133]
[1717403348349,7.7723803,3828.2,3828.1,6.5438133]
[1717403350065,7.77250027,3828.2,3828.1,6.5438133]
[1717403351733,7.77250027,3828.2,3828.1,2.91033225]
[1717403351961,7.77250027,3828.2,3827.0,0.140494]
[1717403351962,13.52825415,3828.2,3827.0,0.140494]
[1717403352164,2.26109974,3827.1,3827.0,0.140494]
[1717403352365,1.11497343,3827.1,3827.0,0.140494]
[1717403352831,1.86497343,3827.1,3827.0,0.140494]
[1717403353326,4.4779344,3827.1,3827.0,0.140494]
[1717403358149,6.38897295,3827.1,3827.0,0.140494]
[1717403358385,7.48947022,3827.1,3827.0,0.140494]
[1717403358646,5.57843167,3827.1,3827.0,0.140494]
[1717403359155,7.48921125,3827.1,3827.0,0.140494]
[1717403359777,5.57843167,3827.1,3827.0,0.140494]
[1717403361304,7.48921125,3827.1,3827.0,0.140494]
[1717403361487,6.38871398,3827.1,3827.0,0.140494]
[1717403361691,8.69301398,3827.1,3827.0,0.140494]
[1717403362061,6.7822344,3827.1,3827.0,0.140494]
[1717403362772,8.69245133,3827.1,3827.0,0.140494]
[1717403363088,9.78780644,3827.1,3827.0,0.140494]
[1717403364260,5.83815133,3827.1,3827.0,0.140494]
[1717403364494,3.9279344,3827.1,3827.0,0.140494]
[1717403364713,3.9279344,3827.1,3827.0,0.21084325]
[1717403364919,3.36294,3827.1,3827.0,0.140494]
[1717403365078,3.92790294,3827.1,3827.0,0.140494]
[1717403366108,3.92790294,3827.1,3827.0,0.21084325]
[1717403367386,1.31496294,3827.1,3827.0,0.21084325]
[1717403367559,1.31496294,3827.1,3827.0,2.70484325]
[1717403367772,2.38818385,3827.1,3827.0,2.70484325]
[1717403367972,0.75,3827.1,3827.0,2.70484325]
[1717403369414,0.75,3827.1,3827.0,3.23664758]
[1717403369779,2.1153565,3827.1,3827.0,3.23664758]
[1717403370116,1.3653565,3827.2,3827.1,2.61294]
[1717403370410,2.1153565,3827.2,3827.1,4.89194]
[1717403370568,1.3653565,3827.2,3827.1,5.52570622]
[1717403371872,1.3653565,3827.3,3827.1,3.24670622]
[1717403372105,1.3653565,3827.4,3827.3,2.6128]
[1717403372309,1.3653565,3827.5,3827.3,2.6128]
[1717403372493,1.3653565,3827.5,3827.4,2.77425662]
[1717403372696,1.3653565,3827.5,3827.4,2.84418249]
[1717403373009,1.3653565,3827.6,3827.4,2.84418249]
[1717403373164,1.3653565,3827.5,3827.4,2.84418249]
[1717403374925,1.63818385,3827.8,3827.4,2.84418249]
[1717403375064,0.75,3827.6,3827.4,2.84418249]
[1717403376574,0.75,3827.6,3827.5,7.838]
[1717403376772,0.75,3827.6,3827.5,9.16749825]
[1717403377102,0.75,3827.6,3827.5,9.23738234]
[1717403378690,1.63818385,3827.8,3827.6,2.6126]
[1717403378871,2.38818385,3827.8,3827.7,2.4653]
[1717403379076,0.75,3827.8,3827.7,2.53479407]
[1717403379291,0.75,3827.8,3827.7,3.99874896]
[1717403379774,1.63818385,3827.9,3827.7,3.99874896]
[1717403380075,0.75,3827.9,3827.8,2.61246]
[1717403380282,1.64009754,3828.2,3827.8,2.61246]
[1717403380429,0.75,3828.1,3828.0,2.3943]
[1717403380631,0.75,3828.1,3828.0,2.46366875]
[1717403380950,0.75,3828.1,3828.0,3.1837892]
[1717403381143,1.64009754,3828.4,3828.1,2.61226]
[1717403381348,0.75,3828.4,3828.1,2.61226]
[1717403381586,0.75,3828.4,3828.2,0.06928522]
[1717403383443,1.36545007,3828.3,3828.2,0.06928522]
[1717403384980,1.36545007,3828.3,3828.2,7.90588522]
[1717403385167,2.11545007,3828.4,3828.2,7.90588522]
[1717403385366,2.11545007,3828.4,3828.3,2.61212]
[1717403385738,2.11545007,3828.4,3828.3,2.68136346]
[1717403386586,0.75,3828.4,3828.3,2.68136346]
[1717403388169,0.75,3828.4,3828.3,10.51776346]
[1717403394265,0.75,3828.4,3828.3,7.90564346]
[1717403395723,2.11319993,3828.4,3828.3,7.90564346]
[1717403396718,2.67791563,3828.4,3828.3,7.90564346]
[1717403396922,3.03260361,3828.4,3828.3,7.90564346]
[1717403397490,2.23414246,3828.4,3828.3,7.90564346]
[1717403397691,3.80281867,3828.4,3828.3,7.90564346]
[1717403398023,2.88341499,3828.4,3828.3,7.90564346]
[1717403398326,1.31473878,3828.4,3828.3,7.90564346]
[1717403399321,2.88343148,3828.4,3828.3,7.90564346]
[1717403401757,1.31473878,3828.4,3828.3,7.90564346]
[1717403402048,1.31473878,3828.4,3828.3,10.31284346]
[1717403402203,0.75,3828.4,3828.3,10.31284346]
[1717403403780,1.31465465,3828.4,3828.3,10.31284346]
[1717403403950,1.31465465,3828.4,3828.3,10.80510878]
[1717403404280,2.3186927,3828.5,3828.4,2.61205]
[1717403404600,2.88334603,3828.5,3828.4,2.61205]
[1717403405380,4.2464489,3828.5,3828.4,2.61205]
[1717403407095,1.31469233,3828.5,3828.4,2.61205]
[1717403407239,1.31469233,3828.5,3828.4,3.66381935]
[1717403407677,2.67933775,3828.5,3828.4,3.66381935]
[1717403407985,3.68312547,3828.5,3828.4,3.66381935]
[1717403408159,4.2478178,3828.5,3828.4,3.66381935]
[1717403408359,4.2478178,3828.5,3828.4,2.61205]
[1717403408558,1.31469233,3828.5,3828.4,2.61205]
[1717403408759,0.75,3828.5,3828.4,2.61205]
[1717403409250,0.75,3828.5,3828.3,7.90564346]
[1717403409585,0.56467347,3828.4,3828.3,7.90564346]
[1717403411456,2.20283526,3828.4,3828.3,7.90564346]
[1717403412626,0.56467347,3828.4,3828.3,7.90564346]
[1717403413184,2.20528338,3828.4,3828.3,7.90564346]
[1717403413433,0.56467347,3828.4,3828.3,7.90564346]
[1717403414190,2.47586222,3828.4,3828.3,7.90564346]
[1717403415448,0.56467347,3828.4,3828.3,7.90564346]
[1717403417026,3.18999999,3828.4,3828.3,7.90564346]
[1717403417228,3.19004502,3828.4,3828.3,7.90564346]
[1717403417700,3.74004502,3828.4,3828.3,7.90564346]
[1717403418228,6.4533647,3828.4,3828.3,7.90564346]
[1717403418440,3.74004502,3828.4,3828.3,7.90564346]
[1717403419693,4.01299385,3828.4,3828.3,7.90564346]
[1717403421138,7.01299385,3828.4,3828.3,7.90564346]
[1717403421333,11.82599385,3828.4,3828.3,6.55112692]
[1717403421840,4.90154,3827.1,3827.0,0.140494]
[1717403422040,5.9564125,3827.1,3827.0,0.140494]
[1717403422197,8.67362467,3827.1,3827.0,0.140494]
[1717403422396,6.5064125,3827.1,3827.0,0.140494]
[1717403422812,7.25670445,3827.1,3827.0,0.140494]
[1717403423309,6.691694,3827.1,3827.0,0.140494]
[1717403423533,7.25670969,3827.1,3827.0,0.140494]
[1717403425675,10.25670969,3827.1,3827.0,0.140494]
[1717403425978,12.97392186,3827.1,3827.0,0.140494]
[1717403426876,10.25678454,3827.1,3827.0,0.140494]
[1717403429446,12.51114417,3827.1,3827.0,0.140494]
[1717403429646,10.25678454,3827.1,3827.0,0.140494]
[1717403430385,12.51038366,3827.1,3827.0,0.140494]
[1717403431305,12.50958292,3827.1,3827.0,0.140494]
[1717403432681,10.25678454,3827.1,3827.0,0.140494]
[1717403434087,10.51986187,3827.1,3827.0,0.140494]
[1717403434984,10.79290933,3827.1,3827.0,0.140494]
[1717403437207,12.69747147,3827.1,3827.0,0.140494]
[1717403439006,15.31041147,3827.1,3827.0,0.140494]
[1717403441410,13.40584933,3827.1,3827.0,0.140494]
[1717403448115,2.61374,3826.0,3825.5,2.4063]
[1717403448476,0.56509054,3825.9,3825.5,2.4063]
[1717403448679,0.75,3825.6,3825.5,2.4063]
[1717403449517,1.31509054,3825.6,3825.5,2.4063]
[1717403450921,1.31509054,3825.6,3825.0,2.3825]
[1717403450922,1.86509054,3825.6,3825.0,2.3825]
[1717403451220,0.56509054,3825.5,3825.0,2.3825]
[1717403451430,2.61424,3825.2,3825.0,2.3825]
[1717403451713,0.56509054,3825.1,3825.0,2.3825]
[1717403452903,1.31509054,3825.1,3825.0,2.3825]
[1717403453304,1.31526187,3825.1,3825.0,2.3825]
[1717403453989,1.3152771,3825.1,3825.0,2.3825]
[1717403455011,1.3152771,3825.1,3825.0,2.62075]
[1717403460241,0.75,3825.1,3825.0,5.23512]
[1717403460394,1.36015996,3825.7,3825.0,5.23512]
[1717403460605,0.56515615,3825.6,3825.3,2.6141]
[1717403460850,1.36015996,3826.0,3825.3,2.6141]
[1717403460851,0.75,3825.5,3825.4,2.63791]
[1717403461427,1.90456214,3826.9,3825.4,2.63791]
[1717403461428,1.36015996,3826.2,3825.8,2.61382]
[1717403461676,1.36015996,3826.2,3825.9,2.4742]
[1717403461782,0.56505605,3826.1,3826.0,3.122492]
[1717403461987,0.56500367,3826.5,3826.3,2.61345]
[1717403462202,0.75,3826.5,3826.3,2.61345]
[1717403462963,0.75,3826.5,3826.4,2.4837]
[1717403463124,1.63792502,3827.1,3827.0,2.61301]
[1717403463125,1.36493752,3827.1,3827.0,2.61301]
[1717403463339,1.36493752,3827.1,3827.0,5.09671]
[1717403463640,1.36493752,3827.2,3827.0,5.09671]
[1717403463784,2.11493752,3827.2,3827.0,5.09671]
[1717403464492,0.75,3827.2,3827.0,5.09671]
[1717403464691,2.11493752,3827.2,3827.0,5.606381]
[1717403465001,0.75,3827.2,3827.0,5.606381]
[1717403465199,1.36493752,3827.3,3827.2,2.61287]
[1717403465887,1.36493752,3827.7,3827.2,2.61287]
[1717403466117,0.75,3827.6,3827.2,2.61287]
[1717403466345,0.75,3827.6,3827.4,2.61273]
[1717403466850,0.75,3827.6,3827.5,0.04567064]
[1717403467200,1.36493752,3827.9,3827.6,2.6126]
[1717403467400,1.36493752,3828.0,3827.6,2.6126]
[1717403467649,1.36493752,3828.1,3827.8,2.61246]
[1717403467964,2.11493752,3828.1,3827.9,0.04550354]
[1717403468334,2.11493752,3828.1,3828.0,2.61233]
[1717403468640,1.36493752,3828.2,3828.0,2.61233]
[1717403468864,2.11493752,3828.2,3828.0,2.65779177]
[1717403469416,0.75,3828.2,3828.0,2.65779177]
[1717403470941,0.75,3828.2,3828.0,2.97500342]
[1717403471144,1.36493752,3828.5,3828.0,2.97500342]
[1717403471341,0.75,3828.3,3828.0,2.97500342]
[1717403473146,1.36493752,3828.8,3828.0,2.97500342]
[1717403473346,1.46158972,3828.9,3828.0,2.97500342]
[1717403473544,1.46158972,3828.9,3828.0,2.92954165]
[1717403473749,0.75,3828.4,3828.0,2.92954165]
[1717403473943,0.75,3828.4,3828.1,0.04482898]
[1717403474155,0.75,3828.4,3828.2,2.61219]
[1717403474349,0.75,3828.4,3828.3,2.4838]
[1717403474553,0.75,3828.4,3828.3,2.52854545]
[1717403477352,0.75,3828.4,3828.3,0.04474545]
[1717403477674,0.75,3828.4,3828.2,2.61219]
[1717403477967,0.75,3828.4,3828.3,0.04474545]
[1717403478386,0.75,3828.4,3828.2,2.61219]
[1717403478687,0.75,3828.4,3828.3,0.04460835]
[1717403479039,0.75,3828.4,3828.2,2.61219]
[1717403479240,0.75,3828.4,3828.3,7.88100835]
[1717403479799,0.0966522,3828.9,3828.5,2.3404]